[Event "44th Chess Olympiad Open 2022"]
[Site "Chennai"]
[Date "2022.08.01"]
[Round "4.52"]
[White "Husbands, Orlando"]
[Black "Gong, Daniel Hanwen"]
[Result "0-1"]
[WhiteElo "2353"]
[BlackElo "2296"]
[Annotator "TA"]
[PlyCount "90"]
[EventDate "2022.??.??"]
[TimeControl "60"]

{[%evp 9,90,32,43,25,12,18,20,13,12,-3,0,0,10,-22,-24,-23,0,-22,-30,-58,-56,
-54,-56,-56,-62,-52,-47,-161,-164,-172,-170,-172,-170,-164,-150,-167,-151,-183,
-196,-247,-248,-250,-249,-251,-252,-235,-253,-328,-241,-256,-267,-256,-217,
-495,-487,-494,-469,-642,-640,-596,-458,-612,-426,-643,-545,-957,-866,-811,
-645,-877,-556,-452,-442,-480,-480,-6179,-6121,-6121,-5935,-5895,-4786,-29980,
-5732]} 1. d4 {[%emt 0:00:02]} Nf6 {[%emt 0:00:05]} 2. c4 {[%emt 0:00:09]} d6 {
[%emt 0:00:04]} 3. Nf3 {[%emt 0:00:06]} g6 {[%emt 0:00:28]} 4. Nc3 {[%emt 0:00:
00]} Bf5 {[%emt 0:00:06]} 5. g3 {[%emt 0:00:35]} Ne4 {[%emt 0:00:04]} 6. Bg2 {
[%emt 0:01:41] E61: King's Indian: Early deviations for White, including
Smyslov System.} Nxc3 {[%emt 0:00:04]} 7. bxc3 {[%emt 0:00:12]} Be4 {[%emt 0:
00:00]} 8. O-O {[%emt 0:00:59] The position is equal.} Bg7 {[%emt 0:00:04] [#]}
9. Bg5 $146 {[%emt 0:00:06]} ({Predecessor:} 9. Bh3 c5 10. Be3 b6 11. d5 Bxf3
12. exf3 O-O 13. Qd3 Nd7 14. f4 f5 15. Rfe1 {½-½ (105) Yilmaz,M (2594)-Jones,
G (2650) Dubai 2016}) 9... h6 {[%emt 0:06:17]} 10. Be3 {[%emt 0:01:10]} Nd7 {
[%emt 0:00:45][%cal Yb8d7,Yd7b6,Yb6a4,Ya4c3]} 11. Qa4 {[%emt 0:01:33]} O-O {
[%emt 0:02:09]} 12. Rfd1 $1 {[%emt 0:00:02]} Nb6 {[%emt 0:17:40]} 13. Qb3 {
[%emt 0:02:25]} Qe8 {[%emt 0:06:07]} 14. Nh4 {[%emt 0:06:47]} Bxg2 {[%emt 0:00:
00]} 15. Nxg2 {[%emt 0:00:02]} Qc6 {[%emt 0:00:55]} 16. c5 {[%emt 0:00:44]}
dxc5 {[%emt 0:02:06]} 17. dxc5 {[%emt 0:00:03]} Na4 {[%emt 0:00:44]} 18. Nf4 {
[%emt 0:04:11] Black continues to play with concentration.} ({White should play
} 18. Rdc1 $15) 18... Nxc3 $19 {[%emt 0:01:44]} 19. Rdc1 {[%emt 0:05:08]} g5 {
[%emt 0:07:05]} 20. Rxc3 {[%emt 0:00:59]} gxf4 {[%emt 0:00:04]} 21. Bxf4 {
[%emt 0:00:19]} Bxc3 {[%emt 0:00:25]} 22. Qxc3 {[%emt 0:00:02]} Rfd8 {[%emt 0:
00:00]} 23. Qe3 {[%emt 0:02:23]} Rd5 {[%emt 0:01:48]} 24. Bxh6 {[%emt 0:01:03]}
(24. Qxe7 {was worth a try.} Re8 25. Qh4) 24... Rad8 {[%emt 0:01:27]} ({Not} 
24... Qxc5 25. Qf3 Qc6 26. Bf4) 25. Rf1 {[%emt 0:00:07]} Rd1 $40 {[%emt 0:00:
00] Black is out for blood.} ({Stronger than} 25... Qxc5 26. Qf3 Qc6 27. Bf4)
26. f3 {[%emt 0:00:02]} Rxf1+ {[%emt 0:22:27]} 27. Kxf1 {[%emt 0:00:00]
Endgame KQR-KQB} Rd5 {[%emt 0:00:58]} 28. Kg2 {[%emt 0:10:27]} Qe6 {[%emt 0:02:
14] White must now prevent ...Re5.} 29. Qxe6 {[%emt 0:02:19]} fxe6 {[%emt 0:00:
03] KR-KB} 30. Be3 {[%emt 0:00:10]} b6 {[%emt 0:00:09]} 31. c6 {[%emt 0:01:26]}
(31. Kf2 {is the only way for White.}) 31... Rd6 {[%emt 0:00:00]} 32. h4 {
[%emt 0:00:01]} Rxc6 {[%emt 0:00:07] aiming for ...Rc2.} 33. h5 {[%emt 0:00:13]
} Rc2 $1 {[%emt 0:00:46][%csl Ya2,Ye2]} 34. Kf2 {[%emt 0:00:23]} c5 {[%emt 0:
01:21][%cal Yc7c5,Yc5c4,Yc4c3]} 35. g4 {[%emt 0:00:01]} e5 {[%emt 0:01:06]} 36.
g5 {[%emt 0:00:09]} (36. a4 $142 Rc4 37. Bg5) 36... c4 {[%emt 0:05:48]} 37. g6
{[%emt 0:00:01]} c3 {[%emt 0:00:23]} 38. h6 {[%emt 0:00:00] [#]} Rd2 $1 {
[%emt 0:00:38]} 39. f4 {[%emt 0:01:28]} (39. Ke1 Rd6) 39... Rd6 {[%emt 0:00:55]
Strongly threatening ...exf4.} 40. f5 {[%emt 0:00:00]} Rf6 {[%emt 0:01:13]
Threatens to win with ...e6.} 41. h7+ {[%emt 0:00:00]} Kh8 {[%emt 0:30:26] And
now ...e6 would win.} 42. Kg3 {[%emt 0:00:58]} (42. Ke1 $142) 42... Rxf5 {
[%emt 0:00:07]} 43. Kg4 {[%emt 0:00:02]} e6 {[%emt 0:00:00]} 44. Bh6 {[%emt 0:
00:22]} c2 {[%emt 0:00:18][%cal Yf5f4] ( -> ...Rf4+!)} 45. e4 {[%emt 0:00:10] 
[#]} Rf1 {[%emt 0:00:22] Weighted Error Value: White=0.88/Black=0.39} (45...
Rf4+ $142 $1 46. Bxf4 exf4 47. Kxf4 c1=Q+ 48. Ke5 Qg5+ 49. Kd4 Qxg6 50. Ke5
Kxh7 51. Kd4 Qg3 52. Kc4 Qe3 53. e5 Qe2+ 54. Kc3 Qxa2 55. Kd3 Qb3+ 56. Ke2 a5
57. Kd2 a4 58. Ke2 a3 59. Kf2 a2 60. Kg2 a1=Q 61. Kh2 Qab2+ 62. Kh1 Qd1#) 0-1

[Event "44th Chess Olympiad Open 2022"]
[Site "Chennai"]
[Date "2022.08.01"]
[Round "4.52"]
[White "Croad, Nicolas"]
[Black "Blackman, Justin"]
[Result "0-1"]
[WhiteElo "2289"]
[BlackElo "2195"]
[Annotator "NA RC"]
[PlyCount "104"]
[EventDate "2022.??.??"]
[TimeControl "60"]

1. d4 {[%emt 0:00:04]} Nf6 {[%emt 0:00:05]} 2. c4 {[%emt 0:00:05]} e6 {[%emt 0:
00:00]} 3. Nc3 {[%emt 0:00:06]} Bb4 {[%emt 0:00:05]} 4. Qc2 {[%emt 0:00:05]}
O-O {[%emt 0:00:06]} 5. a3 {[%emt 0:00:07]} Bxc3+ {[%emt 0:00:05]} 6. Qxc3 {
[%emt 0:00:04]} Qe8 {[%emt 0:00:11]} 7. g3 {[%emt 0:01:48]} a5 {[%emt 0:00:18]}
8. Bg2 {[%emt 0:01:16]} d6 {[%emt 0:00:14]} 9. b3 {[%emt 0:03:39]} Ra7 {
[%emt 0:00:08]} 10. Bb2 {[%emt 0:00:37]} a4 {[%emt 0:00:12]} 11. b4 {[%emt 0:
00:00]} b5 {[%emt 0:00:07]} 12. c5 {[%emt 0:07:46]} Bb7 {[%emt 0:00:05]} 13.
Nf3 {[%emt 0:00:15]} Ne4 {[%emt 0:00:11]} 14. Qc2 {[%emt 0:00:25]} f5 {[%emt 0:
00:00]} 15. O-O {[%emt 0:01:08]} Bd5 {[%emt 0:01:14]} 16. Ne1 {[%emt 0:09:01]}
Nd7 {[%emt 0:09:13]} 17. f3 {[%emt 0:02:11]} Ng5 {[%emt 0:04:20]} 18. Nd3 {
[%emt 0:03:14]} Nf6 {[%emt 0:05:21]} 19. Rae1 {[%emt 0:06:51]} Bb3 {[%emt 0:00:
00]} 20. Qd2 {[%emt 0:01:24]} Qg6 {[%emt 0:09:26]} 21. Bc1 {[%emt 0:10:11]} h6
{[%emt 0:06:15]} 22. Nf4 {[%emt 0:04:33]} Qh7 {[%emt 0:03:10]} 23. Bb2 {
[%emt 0:11:47]} Raa8 {[%emt 0:06:14]} 24. Rf2 {[%emt 0:12:57]} Rae8 {[%emt 0:
00:00]} 25. Nd3 {[%emt 0:03:10]} Bd5 {[%emt 0:03:09]} 26. Rc1 {[%emt 0:00:00]}
Nf7 {[%emt 0:02:21]} 27. cxd6 {[%emt 0:01:09]} cxd6 {[%emt 0:00:49]} 28. Rc7 {
[%emt 0:01:07]} Rc8 {[%emt 0:00:37]} 29. Rxc8 {[%emt 0:00:11]} Rxc8 {[%emt 0:
00:00]} 30. Rf1 {[%emt 0:00:04]} h5 {[%emt 0:05:22]} 31. Rc1 {[%emt 0:00:35]}
Bc4 {[%emt 0:00:23]} 32. Nf2 {[%emt 0:06:38]} h4 {[%emt 0:02:07]} 33. e4 {
[%emt 0:00:58]} hxg3 {[%emt 0:00:18]} 34. hxg3 {[%emt 0:00:04]} Qg6 {[%emt 0:
00:00]} 35. exf5 {[%emt 0:02:46]} exf5 {[%emt 0:02:29]} 36. Nh1 {[%emt 0:01:24]
} d5 {[%emt 0:05:13]} 37. Re1 {[%emt 0:00:32]} Qh5 {[%emt 0:01:08]} 38. Qf4 {
[%emt 0:01:25]} Bb3 {[%emt 0:01:15]} 39. Rc1 {[%emt 0:01:30]} Re8 {[%emt 0:00:
00]} 40. Kf2 {[%emt 0:03:02]} Ng5 {[%emt 0:16:25]} 41. Qxf5 {[%emt 0:33:49]}
Nge4+ {[%emt 0:30:07]} 42. fxe4 {[%emt 0:00:09]} Ng4+ {[%emt 0:00:09]} 43. Kf3
{[%emt 0:00:00]} dxe4+ {[%emt 0:00:00]} 44. Kf4 {[%emt 0:00:00]} Rf8 {[%emt 0:
00:00]} 45. Qxf8+ {[%emt 0:00:00]} Kxf8 {[%emt 0:00:00]} 46. Rc8+ {[%emt 0:00:
00]} Ke7 {[%emt 0:00:00]} 47. d5 {[%emt 0:00:00]} g5+ {[%emt 0:00:00]} 48. Kxe4
{[%emt 0:00:00]} Qg6+ {[%emt 0:00:00]} 49. Kd4 {[%emt 0:00:00]} Qf6+ {[%emt 0:
00:00]} 50. Kc5 {[%emt 0:00:00]} Qxb2 {[%emt 0:00:00]} 51. d6+ {[%emt 0:00:00]}
Kd7 {[%emt 0:00:00]} 52. Rc7+ {[%emt 0:00:00]} Kd8 {[%emt 0:00:00]} 0-1

[Event "44th Chess Olympiad Open 2022"]
[Site "Chennai"]
[Date "2022.08.01"]
[Round "4.52"]
[White "Stark, John"]
[Black "Roachford, Adam"]
[Result "1-0"]
[WhiteElo "2028"]
[BlackElo "1443"]
[Annotator "NA RC"]
[PlyCount "87"]
[EventDate "2022.??.??"]
[TimeControl "60"]

1. e4 {[%emt 0:00:02]} e5 {[%emt 0:00:29]} 2. Nf3 {[%emt 0:00:32]} Nc6 {
[%emt 0:00:08]} 3. Bb5 {[%emt 0:00:05]} Nf6 {[%emt 0:00:13]} 4. O-O {[%emt 0:
00:00]} d6 {[%emt 0:09:09]} 5. Re1 {[%emt 0:01:11]} Be7 {[%emt 0:00:21]} 6. c3
{[%emt 0:00:11]} Bg4 {[%emt 0:00:33]} 7. d3 {[%emt 0:00:53]} O-O {[%emt 0:00:
00]} 8. Nbd2 {[%emt 0:10:00]} Nb8 {[%emt 0:09:30]} 9. Nf1 {[%emt 0:00:00]} c6 {
[%emt 0:02:02]} 10. Ba4 {[%emt 0:00:00]} Nbd7 {[%emt 0:04:21]} 11. d4 {[%emt 0:
00:00]} Qc7 {[%emt 0:12:23]} 12. Ng3 {[%emt 0:00:00]} Nb6 {[%emt 0:05:03]} 13.
Bc2 {[%emt 0:00:00]} c5 {[%emt 0:02:01]} 14. d5 {[%emt 0:02:25]} g6 {[%emt 0:
00:00]} 15. h3 {[%emt 0:03:38]} Bd7 {[%emt 0:03:16]} 16. Bh6 {[%emt 0:05:50]}
Rfd8 {[%emt 0:03:51]} 17. Qc1 {[%emt 0:00:45]} Ne8 {[%emt 0:01:44]} 18. h4 {
[%emt 0:02:24]} Bg4 {[%emt 0:07:54]} 19. Nh2 {[%emt 0:00:32]} Bd7 {[%emt 0:00:
00]} 20. h5 {[%emt 0:02:40]} Ng7 {[%emt 0:03:55]} 21. Re3 {[%emt 0:08:06]} Rf8
{[%emt 0:03:18]} 22. Rf3 {[%emt 0:09:03]} Qc8 {[%emt 0:08:39]} 23. Nf5 {
[%emt 0:06:17]} gxf5 {[%emt 0:03:39]} 24. Rg3 {[%emt 0:00:32]} f4 {[%emt 0:00:
00]} 25. Rxg7+ {[%emt 0:19:59]} Kh8 {[%emt 0:00:03]} 26. Bd1 {[%emt 0:00:54]}
Bf6 {[%emt 0:00:19]} 27. Rg4 {[%emt 0:00:12]} Bxg4 {[%emt 0:00:43]} 28. Bxg4 {
[%emt 0:00:39]} Qc7 {[%emt 0:00:48]} 29. Bxf8 {[%emt 0:02:45]} Rxf8 {[%emt 0:
00:00]} 30. c4 {[%emt 0:02:49]} Rg8 {[%emt 0:00:11]} 31. b3 {[%emt 0:00:27]}
Nd7 {[%emt 0:01:44]} 32. Qc3 {[%emt 0:02:06]} Be7 {[%emt 0:00:26]} 33. Qh3 {
[%emt 0:08:34]} Nf6 {[%emt 0:00:40]} 34. Bf3 {[%emt 0:02:55]} Qa5 {[%emt 0:00:
00]} 35. Ng4 {[%emt 0:05:38]} Qc3 {[%emt 0:00:19]} 36. Rf1 {[%emt 0:00:38]}
Nxg4 {[%emt 0:00:50]} 37. Bxg4 {[%emt 0:00:05]} Qc2 {[%emt 0:00:16]} 38. Bf3 {
[%emt 0:01:12]} Qxa2 {[%emt 0:00:32]} 39. Qd7 {[%emt 0:00:16]} Qxb3 {[%emt 0:
00:00]} 40. Qxe7 {[%emt 0:00:22]} Kg7 {[%emt 0:00:41]} 41. Qg5+ {[%emt 0:30:33]
} Kf8 {[%emt 0:30:15]} 42. Qd8+ {[%emt 0:00:09]} Kg7 {[%emt 0:00:29]} 43. h6+ {
[%emt 0:00:08]} Kxh6 {[%emt 0:00:22]} 44. Qxg8 {[%emt 0:00:11]} 1-0

[Event "44th Chess Olympiad Open 2022"]
[Site "Chennai"]
[Date "2022.08.01"]
[Round "4.52"]
[White "Edwards, Emar"]
[Black "Xie, Felix"]
[Result "0-1"]
[WhiteElo "1695"]
[BlackElo "2224"]
[Annotator "NA RC"]
[PlyCount "60"]
[EventDate "2022.??.??"]
[TimeControl "60"]

1. e4 {[%emt 0:00:03]} c6 {[%emt 0:00:17]} 2. Nf3 {[%emt 0:00:13]} d5 {[%emt 0:
00:00]} 3. Nc3 {[%emt 0:00:10]} dxe4 {[%emt 0:00:16]} 4. Nxe4 {[%emt 0:00:06]}
Nf6 {[%emt 0:00:06]} 5. Nxf6+ {[%emt 0:00:13]} exf6 {[%emt 0:00:06]} 6. Be2 {
[%emt 0:01:05]} Bd6 {[%emt 0:00:16]} 7. d4 {[%emt 0:00:09]} O-O {[%emt 0:00:25]
} 8. O-O {[%emt 0:00:06]} Re8 {[%emt 0:00:03]} 9. Be3 {[%emt 0:00:08]} Bg4 {
[%emt 0:01:20]} 10. Re1 {[%emt 0:01:02]} Nd7 {[%emt 0:00:57]} 11. c3 {[%emt 0:
00:00]} Nf8 {[%emt 0:01:37]} 12. h3 {[%emt 0:01:41]} Bh5 {[%emt 0:00:25]} 13.
Qb3 {[%emt 0:07:54]} Qc7 {[%emt 0:03:28]} 14. Rad1 {[%emt 0:13:15]} f5 {
[%emt 0:02:55]} 15. d5 {[%emt 0:08:44]} c5 {[%emt 0:01:16]} 16. c4 {[%emt 0:00:
00]} Nd7 {[%emt 0:01:39]} 17. Bd2 {[%emt 0:03:07]} Nf6 {[%emt 0:01:42]} 18. Qd3
{[%emt 0:05:19]} Ne4 {[%emt 0:07:41]} 19. Ng5 {[%emt 0:06:32]} Bg6 {[%emt 0:00:
00]} 20. Nxe4 {[%emt 0:02:38]} fxe4 {[%emt 0:00:06]} 21. Qe3 {[%emt 0:01:05]}
f5 {[%emt 0:03:50]} 22. Qg5 {[%emt 0:04:46]} Be5 {[%emt 0:10:42]} 23. b3 {
[%emt 0:06:05]} Qd6 {[%emt 0:00:56]} 24. Rc1 {[%emt 0:06:21]} h6 {[%emt 0:00:
00]} 25. Qh4 {[%emt 0:00:11]} Bf7 {[%emt 0:00:37]} 26. f4 {[%emt 0:08:33]} exf3
{[%emt 0:00:47]} 27. Bxf3 {[%emt 0:02:16]} Bg3 {[%emt 0:00:09]} 28. Rxe8+ {
[%emt 0:00:57]} Rxe8 {[%emt 0:00:06]} 29. Bf4 {[%emt 0:05:47]} Bxf4 {[%emt 0:
00:00]} 30. Re1 {[%emt 0:01:43]} Bg3 {[%emt 0:00:10]} 0-1

[Event "44th Chess Olympiad Open 2022"]
[Site "Chennai"]
[Date "2022.08.01"]
[Round "4.53"]
[White "Miguel, Sergio"]
[Black "Traore, Bakary"]
[Result "1/2-1/2"]
[WhiteElo "2274"]
[BlackElo "2181"]
[Annotator "NA RC"]
[PlyCount "137"]
[EventDate "2022.??.??"]
[TimeControl "60"]

1. e4 {[%emt 0:00:03]} e5 {[%emt 0:00:15]} 2. Bc4 {[%emt 0:00:08]} Nf6 {
[%emt 0:00:19]} 3. d3 {[%emt 0:00:08]} Be7 {[%emt 0:00:50]} 4. Nc3 {[%emt 0:00:
00]} c6 {[%emt 0:00:13]} 5. Nf3 {[%emt 0:00:26]} d6 {[%emt 0:00:11]} 6. O-O {
[%emt 0:00:30]} Nbd7 {[%emt 0:00:15]} 7. a4 {[%emt 0:05:25]} O-O {[%emt 0:00:
00]} 8. d4 {[%emt 0:01:20]} Qc7 {[%emt 0:01:05]} 9. Re1 {[%emt 0:01:26]} Nb6 {
[%emt 0:01:10]} 10. Bb3 {[%emt 0:01:40]} Bg4 {[%emt 0:00:20]} 11. Be3 {[%emt 0:
00:00]} Nbd7 {[%emt 0:02:45]} 12. h3 {[%emt 0:01:13]} Bh5 {[%emt 0:00:33]} 13.
dxe5 {[%emt 0:06:49]} dxe5 {[%emt 0:00:44]} 14. g4 {[%emt 0:03:07]} Bg6 {
[%emt 0:00:18]} 15. Nh4 {[%emt 0:01:25]} Nc5 {[%emt 0:02:25]} 16. Bxc5 {
[%emt 0:02:22]} Bxc5 {[%emt 0:00:11]} 17. Qf3 {[%emt 0:00:22]} Rad8 {[%emt 0:
00:00]} 18. Rad1 {[%emt 0:02:52]} Rd4 {[%emt 0:01:40]} 19. Rd3 {[%emt 0:04:20]}
Rfd8 {[%emt 0:01:56]} 20. Red1 {[%emt 0:07:20]} Rxd3 {[%emt 0:04:41]} 21. Rxd3
{[%emt 0:00:35]} Rxd3 {[%emt 0:00:28]} 22. Qxd3 {[%emt 0:00:41]} Qd6 {[%emt 0:
00:00]} 23. Qxd6 {[%emt 0:01:02]} Bxd6 {[%emt 0:00:25]} 24. f3 {[%emt 0:00:33]}
Kf8 {[%emt 0:00:13]} 25. Kf1 {[%emt 0:00:33]} Ke7 {[%emt 0:00:12]} 26. Ke2 {
[%emt 0:04:55]} Nd7 {[%emt 0:00:20]} 27. Bc4 {[%emt 0:10:35]} Nc5 {[%emt 0:00:
00]} 28. Kd2 {[%emt 0:04:40]} Ne6 {[%emt 0:01:05]} 29. Bxe6 {[%emt 0:00:38]}
Kxe6 {[%emt 0:00:21]} 30. Nf5 {[%emt 0:06:23]} Bf8 {[%emt 0:08:21]} 31. Nh4 {
[%emt 0:00:00]} f6 {[%emt 0:00:58]} 32. Nxg6 {[%emt 0:00:00]} hxg6 {[%emt 0:00:
00]} 33. Kd3 {[%emt 0:00:00]} Bc5 {[%emt 0:01:57]} 34. Kc4 {[%emt 0:00:00]} Bd4
{[%emt 0:01:41]} 35. Nd1 {[%emt 0:00:00]} Kd6 {[%emt 0:01:10]} 36. c3 {[%emt 0:
00:00]} Bg1 {[%emt 0:00:11]} 37. h4 {[%emt 0:00:00]} a6 {[%emt 0:03:07]} 38. a5
{[%emt 0:01:49]} Ba7 {[%emt 0:01:26]} 39. b4 {[%emt 0:00:43]} Bg1 {[%emt 0:00:
00]} 40. Nb2 {[%emt 0:02:07]} Ke6 {[%emt 0:04:52]} 41. Nd3 {[%emt 0:31:31]} Kd6
{[%emt 0:31:19]} 42. Kb3 {[%emt 0:09:03]} Be3 {[%emt 0:05:41]} 43. Nb2 {
[%emt 0:05:00]} Kc7 {[%emt 0:01:47]} 44. Na4 {[%emt 0:00:30]} Kd6 {[%emt 0:00:
00]} 45. c4 {[%emt 0:00:38]} c5 {[%emt 0:02:43]} 46. b5 {[%emt 0:00:00]} Bd2 {
[%emt 0:00:00]} 47. bxa6 {[%emt 0:00:00]} bxa6 {[%emt 0:00:00]} 48. Nc3 {
[%emt 0:00:00]} Ke6 {[%emt 0:00:00]} 49. Nd5 {[%emt 0:00:00]} Bxa5 {[%emt 0:00:
00]} 50. Ka4 {[%emt 0:00:00]} Bd8 {[%emt 0:00:00]} 51. Ne3 {[%emt 0:02:12]} Kd6
{[%emt 0:00:00]} 52. h5 {[%emt 0:00:42]} f5 {[%emt 0:00:00]} 53. exf5 {[%emt 0:
00:00]} gxh5 {[%emt 0:00:15]} 54. gxh5 {[%emt 0:00:22]} Bg5 {[%emt 0:00:00]}
55. Ng4 {[%emt 0:00:16]} Bd2 {[%emt 0:00:00]} 56. f6 {[%emt 0:01:25]} gxf6 {
[%emt 0:00:00]} 57. h6 {[%emt 0:00:12]} Bxh6 {[%emt 0:00:00]} 58. Nxh6 {
[%emt 0:00:01]} e4 {[%emt 0:00:00]} 59. Ka5 {[%emt 0:05:07]} exf3 {[%emt 0:00:
00]} 60. Ng4 {[%emt 0:00:37]} f5 {[%emt 0:00:00]} 61. Nf2 {[%emt 0:02:32]} Ke5
{[%emt 0:00:00]} 62. Kxa6 {[%emt 0:00:25]} Kd4 {[%emt 0:00:00]} 63. Kb5 {
[%emt 0:00:16]} Ke3 {[%emt 0:00:00]} 64. Nh3 {[%emt 0:01:00]} f2 {[%emt 0:00:
00]} 65. Nxf2 {[%emt 0:00:07]} Kxf2 {[%emt 0:00:00]} 66. Kxc5 {[%emt 0:00:05]}
Ke3 {[%emt 0:00:00]} 67. Kd6 {[%emt 0:00:29]} f4 {[%emt 0:00:00]} 68. c5 {
[%emt 0:00:02]} f3 {[%emt 0:00:00]} 69. c6 {[%emt 0:00:08]} 1/2-1/2

[Event "44th Chess Olympiad Open 2022"]
[Site "Chennai"]
[Date "2022.08.01"]
[Round "4.53"]
[White "Junior, Domingos"]
[Black "Maiga, Baba Moulaye Abdall"]
[Result "1-0"]
[WhiteElo "2107"]
[BlackElo "1822"]
[Annotator "NA RC"]
[PlyCount "47"]
[EventDate "2022.??.??"]
[TimeControl "60"]

1. e4 {[%emt 0:00:02]} e5 {[%emt 0:00:02]} 2. Nf3 {[%emt 0:00:07]} Nc6 {
[%emt 0:00:06]} 3. Bc4 {[%emt 0:00:02]} Bc5 {[%emt 0:00:20]} 4. O-O {[%emt 0:
00:00]} Nf6 {[%emt 0:00:24]} 5. d4 {[%emt 0:00:02]} Bxd4 {[%emt 0:01:57]} 6.
Nxd4 {[%emt 0:00:02]} exd4 {[%emt 0:00:54]} 7. e5 {[%emt 0:00:32]} Ne4 {
[%emt 0:02:15]} 8. Qg4 {[%emt 0:02:38]} d5 {[%emt 0:00:18]} 9. Qxg7 {[%emt 0:
00:00]} Ke7 {[%emt 0:00:40]} 10. Bxd5 {[%emt 0:01:12]} Qxd5 {[%emt 0:00:12]}
11. Qxh8 {[%emt 0:00:10]} Qc5 {[%emt 0:02:57]} 12. Qxh7 {[%emt 0:00:51]} Qd5 {
[%emt 0:00:41]} 13. Re1 {[%emt 0:00:29]} Nc5 {[%emt 0:01:16]} 14. Bg5+ {
[%emt 0:00:06]} Kd7 {[%emt 0:00:56]} 15. Nc3 {[%emt 0:00:20]} Qe6 {[%emt 0:00:
00]} 16. Rad1 {[%emt 0:00:13]} b6 {[%emt 0:00:58]} 17. f4 {[%emt 0:00:26]} Qg6
{[%emt 0:01:13]} 18. Qh3+ {[%emt 0:00:58]} Ke8 {[%emt 0:00:22]} 19. Qh8+ {
[%emt 0:00:02]} Kd7 {[%emt 0:00:01]} 20. Rxd4+ {[%emt 0:01:03]} Nxd4 {[%emt 0:
00:00]} 21. Qd8+ {[%emt 0:00:02]} Ke6 {[%emt 0:00:26]} 22. Qd5+ {[%emt 0:00:03]
} Kf5 {[%emt 0:00:12]} 23. e6+ {[%emt 0:00:20]} Kg4 {[%emt 0:00:09]} 24. h3+ {
[%emt 0:00:05]} 1-0

[Event "44th Chess Olympiad Open 2022"]
[Site "Chennai"]
[Date "2022.08.01"]
[Round "4.53"]
[White "Coulibaly, Abdoulaye"]
[Black "Lutuima, Amaro"]
[Result "0-1"]
[WhiteElo "1936"]
[BlackElo "2048"]
[Annotator "NA RC"]
[PlyCount "84"]
[EventDate "2022.??.??"]
[TimeControl "60"]

1. e4 {[%emt 0:00:10]} c5 {[%emt 0:00:40]} 2. c4 {[%emt 0:00:23]} Nc6 {[%emt 0:
00:00]} 3. Nc3 {[%emt 0:00:13]} Nf6 {[%emt 0:00:37]} 4. d3 {[%emt 0:00:19]} e6
{[%emt 0:00:32]} 5. Be2 {[%emt 0:00:33]} Be7 {[%emt 0:00:37]} 6. f4 {[%emt 0:
00:00]} d6 {[%emt 0:01:27]} 7. Nf3 {[%emt 0:00:36]} O-O {[%emt 0:00:45]} 8. O-O
{[%emt 0:00:15]} Nd4 {[%emt 0:01:39]} 9. Kh1 {[%emt 0:03:04]} b6 {[%emt 0:00:
00]} 10. e5 {[%emt 0:01:00]} dxe5 {[%emt 0:00:30]} 11. fxe5 {[%emt 0:00:21]}
Nd7 {[%emt 0:00:15]} 12. Bf4 {[%emt 0:02:21]} Bb7 {[%emt 0:00:48]} 13. Nxd4 {
[%emt 0:01:48]} cxd4 {[%emt 0:00:33]} 14. Nb5 {[%emt 0:00:17]} Qb8 {[%emt 0:00:
00]} 15. Nxd4 {[%emt 0:03:10]} Nxe5 {[%emt 0:02:26]} 16. Nf3 {[%emt 0:00:52]}
Bd6 {[%emt 0:00:15]} 17. Nxe5 {[%emt 0:04:55]} Bxe5 {[%emt 0:00:14]} 18. Bf3 {
[%emt 0:00:32]} Bxf3 {[%emt 0:02:33]} 19. Qxf3 {[%emt 0:00:17]} Qd6 {[%emt 0:
00:00]} 20. Qe4 {[%emt 0:01:39]} Bxf4 {[%emt 0:00:23]} 21. Rxf4 {[%emt 0:00:20]
} f5 {[%emt 0:02:00]} 22. Qd4 {[%emt 0:01:26]} Rad8 {[%emt 0:00:37]} 23. Qxd6 {
[%emt 0:01:50]} Rxd6 {[%emt 0:00:13]} 24. d4 {[%emt 0:00:15]} Rfd8 {[%emt 0:00:
00]} 25. d5 {[%emt 0:04:48]} exd5 {[%emt 0:01:09]} 26. cxd5 {[%emt 0:07:03]}
Rxd5 {[%emt 0:00:16]} 27. h4 {[%emt 0:00:11]} Rd1+ {[%emt 0:00:25]} 28. Rxd1 {
[%emt 0:00:19]} Rxd1+ {[%emt 0:01:33]} 29. Kh2 {[%emt 0:00:01]} Rd2 {[%emt 0:
00:00]} 30. Rc4 {[%emt 0:01:17]} h6 {[%emt 0:05:25]} 31. Ra4 {[%emt 0:01:11]}
a5 {[%emt 0:00:47]} 32. b3 {[%emt 0:00:31]} Kf7 {[%emt 0:00:52]} 33. Kg3 {
[%emt 0:00:55]} g5 {[%emt 0:02:48]} 34. h5 {[%emt 0:02:14]} Kf6 {[%emt 0:01:23]
} 35. Rc4 {[%emt 0:00:08]} g4 {[%emt 0:01:03]} 36. Kf4 {[%emt 0:02:01]} Rf2+ {
[%emt 0:00:17]} 37. Kg3 {[%emt 0:00:02]} Rxa2 {[%emt 0:00:03]} 38. Rc6+ {
[%emt 0:01:49]} Kg5 {[%emt 0:00:12]} 39. Rxb6 {[%emt 0:00:17]} f4+ {[%emt 0:00:
00]} 40. Kh2 {[%emt 0:00:11]} f3 {[%emt 0:00:11]} 41. Kg1 {[%emt 0:33:42]}
Rxg2+ {[%emt 0:30:27]} 42. Kf1 {[%emt 0:00:05]} Kxh5 {[%emt 0:00:18]} 0-1